bitfinex/quotes_BTCUSD_20220731
["timestamp","ask_amount","ask_price","bid_price","bid_amount"]
[1659272975503,0.33928597,23803.0,23799.0,0.00214853]
[1659272975723,0.33928597,23803.0,23799.0,0.05814853]
[1659272976430,0.33928597,23803.0,23799.0,0.056]
[1659272977095,0.33928597,23803.0,23798.0,0.40823058]
[1659272977309,0.33928597,23803.0,23799.0,0.056]
[1659272977537,0.33928597,23803.0,23800.0,0.00214853]
[1659272978897,0.210062,23802.0,23798.0,0.00097325]
[1659272979115,0.24258664,23802.0,23798.0,0.00097325]
[1659272979321,0.24258664,23802.0,23800.0,0.05]
[1659272981071,0.24258664,23802.0,23798.0,0.00097325]
[1659272981288,0.24258664,23802.0,23800.0,0.078]
[1659272982451,0.24258664,23802.0,23798.0,0.00097325]
[1659272982896,0.24258664,23802.0,23799.0,0.00214853]
[1659272983338,0.31758664,23802.0,23798.0,0.02097325]
[1659272984454,0.31758664,23802.0,23799.0,0.00214853]
[1659272984455,0.24258664,23802.0,23799.0,0.00214853]
[1659272984868,0.24258664,23802.0,23798.0,0.00097325]
[1659272985295,0.31758664,23802.0,23799.0,0.02]
[1659272986649,0.24258664,23802.0,23798.0,0.00097325]
[1659272987301,0.31758664,23802.0,23798.0,0.02097325]
[1659272987516,0.31758664,23802.0,23799.0,0.00214853]
[1659272987732,0.31758664,23802.0,23798.0,0.02097325]
[1659272988382,0.31758664,23802.0,23799.0,0.00214853]
[1659272988383,0.28338295,23802.0,23799.0,0.00214853]
[1659272988601,0.20838295,23802.0,23799.0,0.00443232]
[1659272989032,0.30342,23801.0,23799.0,0.00443232]
[1659272989249,0.28338295,23802.0,23799.0,0.02228379]
[1659272990125,0.28326341,23802.0,23799.0,0.02228379]
[1659272990600,0.20826341,23802.0,23799.0,0.00228379]
[1659272991228,0.28326341,23802.0,23799.0,0.02228379]
[1659272991594,0.28326341,23802.0,23799.0,0.02]
[1659272992053,0.28326341,23802.0,23799.0,0.01989035]
[1659272992272,0.28208541,23802.0,23799.0,0.01989035]
[1659272992492,0.28208541,23802.0,23798.0,0.00097325]
[1659272992493,0.20708541,23802.0,23798.0,0.00097325]
[1659272992931,0.03252464,23801.0,23798.0,0.00097325]
[1659272993176,0.03252464,23801.0,23798.0,0.02097325]
[1659272993401,0.08470258,23799.0,23798.0,0.02097325]
[1659272993635,0.210063,23800.0,23798.0,0.02097325]
[1659272994495,0.210063,23800.0,23798.0,0.00097325]
[1659272994719,0.210063,23800.0,23798.0,0.00312178]
[1659272994965,1.11402997,23803.0,23798.0,0.00312178]
[1659272995197,0.40725733,23802.0,23798.0,0.05312178]
[1659272996130,0.03252464,23801.0,23798.0,0.05312178]
[1659272996990,0.03252464,23801.0,23798.0,0.00312178]
[1659272997221,0.10752464,23801.0,23798.0,0.03312178]
[1659272997459,0.10705683,23801.0,23798.0,0.03312178]
[1659272998093,0.075,23801.0,23798.0,0.03312178]
[1659272998556,0.40725733,23802.0,23798.0,0.00312178]
[1659272998998,0.40725733,23802.0,23798.0,0.00097325]
[1659272999730,0.03205683,23801.0,23798.0,0.00097325]
[1659273001303,0.10705683,23801.0,23798.0,0.03474975]
[1659273002629,0.03205683,23801.0,23798.0,0.00474975]
[1659273002842,0.03205683,23801.0,23798.0,0.00097325]
[1659273003271,0.10705683,23801.0,23798.0,0.03097325]
[1659273003506,0.10705683,23801.0,23798.0,0.03371498]
[1659273004604,0.03205683,23801.0,23798.0,0.00371498]
[1659273004844,0.03205683,23801.0,23798.0,0.00097325]
[1659273005297,0.10705683,23801.0,23798.0,0.03371498]
[1659273006754,0.03205683,23801.0,23798.0,0.00371498]
[1659273007447,0.10705683,23801.0,23798.0,0.03371498]
[1659273007677,0.10705683,23801.0,23798.0,0.03097325]
[1659273007879,0.10705683,23801.0,23798.0,0.03358959]
[1659273008758,0.10705683,23801.0,23798.0,0.00358959]
[1659273008759,0.03205683,23801.0,23798.0,0.00358959]
[1659273009429,0.10705683,23801.0,23798.0,0.03097325]
[1659273009862,0.075,23801.0,23799.0,0.00261634]
[1659273010091,0.075,23801.0,23798.0,0.03097325]
[1659273010555,0.075,23801.0,23798.0,0.00097325]
[1659273010774,0.40725733,23802.0,23799.0,0.00261634]
[1659273010984,0.40725733,23802.0,23799.0,0.00309966]
[1659273011616,0.075,23801.0,23799.0,0.00309966]
[1659273012063,0.075,23801.0,23798.0,0.03312046]
[1659273012511,0.075,23801.0,23798.0,0.0357368]
[1659273012762,0.40725733,23802.0,23798.0,0.0057368]
[1659273013224,0.03205683,23801.0,23798.0,0.0357368]
[1659273013447,0.10705683,23801.0,23798.0,0.0357368]
[1659273013669,0.075,23801.0,23798.0,0.0357368]
[1659273014571,0.075,23801.0,23799.0,0.00055066]
[1659273014786,0.61731133,23802.0,23799.0,0.00055066]
[1659273015030,0.64936816,23802.0,23799.0,0.00055066]
[1659273015254,0.64936816,23802.0,23798.0,0.00097325]
[1659273015483,0.075,23801.0,23799.0,0.03]
[1659273016608,0.64936816,23802.0,23798.0,0.00097325]
[1659273017286,0.72836816,23802.0,23798.0,0.00097325]
[1659273018172,0.72836816,23802.0,23799.0,0.00309964]
[1659273018621,0.64936816,23802.0,23799.0,0.00309964]
[1659273019454,0.72836816,23802.0,23799.0,0.00309964]
[1659273019868,0.72836816,23802.0,23798.0,0.00312046]
[1659273020301,0.72836816,23802.0,23799.0,0.00261634]
[1659273020413,0.72836816,23802.0,23798.0,0.00312046]
[1659273020619,0.64936816,23802.0,23798.0,0.00312046]
[1659273021280,0.64936816,23802.0,23799.0,0.00227229]
[1659273021281,0.72836816,23802.0,23799.0,0.00227229]
[1659273022631,0.64936816,23802.0,23799.0,0.00227229]
[1659273025133,0.72836816,23802.0,23799.0,0.00227229]
[1659273026468,0.64936816,23802.0,23799.0,0.00227229]
[1659273027308,0.33928597,23803.0,23799.0,0.00554982]
[1659273027555,0.33928597,23803.0,23802.0,0.04603212]
[1659273028244,0.33928597,23803.0,23802.0,0.04864846]
[1659273028474,0.33928597,23803.0,23802.0,0.04930956]
[1659273029618,0.33928597,23803.0,23802.0,0.04669322]
[1659273029840,0.41628597,23803.0,23802.0,0.08003212]
[1659273030273,0.41628597,23803.0,23802.0,0.03631891]
[1659273030997,0.41628597,23803.0,23802.0,0.03408212]
[1659273031223,0.33928597,23803.0,23802.0,8.212e-05]
[1659273031896,0.33928597,23803.0,23802.0,0.05008212]
[1659273032404,0.33916955,23803.0,23802.0,0.05008212]
[1659273032637,0.33916955,23803.0,23802.0,0.05234509]
[1659273033787,0.33916955,23803.0,23802.0,0.00234509]
[1659273034011,0.33916955,23803.0,23802.0,0.04734509]
[1659273035209,0.33916955,23803.0,23802.0,0.00234509]
[1659273035877,0.33916955,23803.0,23802.0,0.05534509]
[1659273037250,0.64258955,23803.0,23802.0,0.00234509]
[1659273037727,1.04984688,23803.0,23802.0,0.00234509]
[1659273037983,1.37184688,23803.0,23802.0,0.07934509]
[1659273038877,1.37175275,23803.0,23802.0,0.07934509]
[1659273039378,1.34975275,23803.0,23802.0,0.00234509]
[1659273040091,1.42875275,23803.0,23802.0,0.00234509]
[1659273041221,1.34975275,23803.0,23802.0,0.00234509]
[1659273041923,1.42875275,23803.0,23802.0,0.00234509]
[1659273043188,1.34975275,23803.0,23802.0,0.00234509]
[1659273043410,1.3058153,23803.0,23802.0,0.00234509]
[1659273043857,1.3848153,23803.0,23802.0,0.00234509]
[1659273045225,1.3058153,23803.0,23802.0,0.00234509]
[1659273045772,1.3848153,23803.0,23802.0,0.00234509]
[1659273047067,1.3058153,23803.0,23802.0,0.00234509]
[1659273047308,1.0058153,23803.0,23802.0,0.00234509]
[1659273047534,0.7023953,23803.0,23802.0,0.00234509]
[1659273047760,1.0848153,23803.0,23802.0,0.00234509]
[1659273049120,1.0058153,23803.0,23802.0,0.00234509]
[1659273049784,1.0848153,23803.0,23802.0,0.00234509]
[1659273051086,1.0058153,23803.0,23802.0,0.00234509]
[1659273051322,1.3058153,23803.0,23802.0,0.00234509]
[1659273051742,1.0848153,23803.0,23802.0,0.00234509]
[1659273053255,1.0058153,23803.0,23802.0,0.00234509]
[1659273053966,1.3848153,23803.0,23802.0,0.00234509]
[1659273054939,1.0848153,23803.0,23802.0,0.00234509]
[1659273055172,1.0058153,23803.0,23802.0,0.00234509]
[1659273055851,1.3848153,23803.0,23802.0,0.00234509]
[1659273056075,1.0848153,23803.0,23802.0,0.00234509]
[1659273056512,1.3848153,23803.0,23802.0,0.00234509]
[1659273056956,1.3848153,23803.0,23802.0,8.212e-05]
[1659273057202,1.3848153,23803.0,23788.0,0.644]
[1659273057203,0.05,23799.0,23788.0,0.644]
[1659273057444,0.05,23799.0,23789.0,0.25105567]
[1659273057445,0.05,23793.0,23789.0,0.25105567]
[1659273058042,0.200653,23792.0,23787.0,0.03153]
[1659273058272,0.603419,23793.0,23787.0,0.03153]
[1659273058502,0.30342,23792.0,23788.0,0.0022943]
[1659273058725,0.30342,23791.0,23788.0,0.0022943]
[1659273058957,0.40725733,23794.0,23788.0,0.00491064]
[1659273058958,0.30342,23790.0,23788.0,0.00491064]
[1659273059181,0.30342,23789.0,23788.0,0.00491064]
[1659273059405,0.30342,23789.0,23787.0,0.03153]
[1659273059633,0.40725733,23794.0,23787.0,0.03153]
[1659273059885,0.30342,23793.0,23787.0,0.03153]
[1659273060102,0.71067733,23793.0,23786.0,0.13153]
[1659273060328,0.30342,23792.0,23786.0,0.53900595]
[1659273060554,0.40725733,23793.0,23786.0,0.53900595]
[1659273060789,0.30342,23792.0,23786.0,0.53900595]
[1659273061020,0.30342,23791.0,23786.0,0.53900595]
[1659273061238,0.40725733,23793.0,23786.0,0.53878733]
[1659273061463,0.41181666,23793.0,23786.0,0.53878733]
[1659273061937,0.45181666,23793.0,23786.0,0.53878733]
[1659273063526,0.45181666,23793.0,23788.0,6.348e-05]
[1659273063750,0.41181666,23793.0,23788.0,6.348e-05]
[1659273063984,0.30342,23792.0,23788.0,6.348e-05]
[1659273064235,0.33547683,23791.0,23788.0,6.348e-05]
[1659273064464,0.03205683,23791.0,23786.0,0.53878733]
[1659273064930,0.03205683,23791.0,23788.0,6.274e-05]
[1659273065368,0.30342,23790.0,23788.0,6.274e-05]
[1659273065597,0.62194566,23793.0,23788.0,0.00267908]
[1659273065854,0.30342,23792.0,23788.0,0.00261634]
[1659273066085,0.07605683,23791.0,23788.0,0.00261634]
[1659273066316,0.37947683,23791.0,23786.0,0.53878733]
[1659273066545,9.074e-05,23788.0,23786.0,0.53878733]
[1659273066998,9.074e-05,23788.0,23787.0,0.00261634]
[1659273067214,0.03214757,23788.0,23786.0,0.50725733]
[1659273067671,9.074e-05,23788.0,23786.0,0.50725733]
[1659273068130,0.03205683,23787.0,23786.0,0.50725733]
[1659273068582,9.074e-05,23788.0,23786.0,0.50725733]
[1659273069510,9.074e-05,23788.0,23786.0,0.50987367]
[1659273069738,9.074e-05,23788.0,23786.0,0.50725733]
[1659273070439,0.00464632,23788.0,23786.0,0.50725733]
[1659273070675,0.00464632,23788.0,23786.0,0.50993715]
[1659273070898,0.00464632,23788.0,23786.0,0.50732081]
[1659273071320,0.03670315,23788.0,23786.0,0.50732081]
[1659273071577,0.03670315,23788.0,23786.0,0.50725733]
[1659273072023,0.03670315,23788.0,23786.0,0.50732081]
[1659273072958,0.03670315,23788.0,23786.0,0.10006348]
[1659273073261,0.03670315,23788.0,23786.0,0.1]
[1659273073598,0.30342,23787.0,23786.0,0.1]
[1659273073831,0.03670315,23788.0,23786.0,0.1]
[1659273074042,0.30342,23787.0,23786.0,0.1]
[1659273074510,0.03670315,23788.0,23786.0,0.09968614]
[1659273074715,0.30342,23787.0,23786.0,0.09968614]
[1659273075162,0.30342,23787.0,23786.0,0.08968614]
[1659273075388,0.03670315,23788.0,23786.0,0.08968614]
[1659273075600,0.30342,23787.0,23786.0,0.08968614]
[1659273076498,0.03670315,23788.0,23786.0,0.08968614]
[1659273076722,0.30342,23787.0,23786.0,0.08968614]
[1659273077929,0.30797287,23787.0,23786.0,0.08968614]
[1659273078144,0.00455287,23787.0,23786.0,0.08968614]
[1659273078807,0.30342,23787.0,23786.0,0.08968614]
[1659273079050,0.30351074,23788.0,23786.0,0.08968614]
[1659273079279,0.30342,23787.0,23786.0,0.08968614]
[1659273079779,0.30351074,23788.0,23786.0,0.08968614]
[1659273080018,0.30342,23787.0,23786.0,0.08968614]
[1659273081393,0.33547683,23787.0,23786.0,0.08968614]
[1659273082068,0.30342,23787.0,23786.0,0.08968614]
[1659273082746,0.21481132,23788.0,23786.0,0.08968614]
[1659273083009,0.0092512,23787.0,23786.0,0.09230248]
[1659273083251,0.0092512,23787.0,23786.0,0.08968614]
[1659273084174,0.3126712,23787.0,23786.0,0.08968614]
[1659273085117,0.34472803,23787.0,23786.0,0.08968614]
[1659273086500,0.3126712,23787.0,23786.0,0.08968614]
[1659273087684,0.0092512,23787.0,23786.0,0.08968614]
[1659273087916,0.3126712,23787.0,23786.0,0.08968614]
[1659273088602,0.0092512,23787.0,23786.0,0.08968614]
[1659273088835,0.3126712,23787.0,23786.0,0.08968614]
[1659273089287,0.0092512,23787.0,23786.0,0.08968614]
[1659273089505,0.01449105,23787.0,23786.0,0.08968614]
[1659273089733,0.31791105,23787.0,23786.0,0.08968614]
[1659273090000,0.01449105,23787.0,23786.0,0.08968614]
[1659273091584,0.31791105,23787.0,23786.0,0.08968614]
[1659273091802,0.01449105,23787.0,23786.0,0.08968614]
[1659273092263,0.31791105,23787.0,23786.0,0.08968614]
[1659273092534,0.01449105,23787.0,23786.0,0.08968614]
[1659273092768,0.31791105,23787.0,23786.0,0.08968614]
[1659273092987,0.01449105,23787.0,23786.0,0.08968614]
[1659273093205,0.31791105,23787.0,23786.0,0.08968614]
[1659273093721,0.01449105,23787.0,23786.0,0.08968614]
[1659273094574,0.31791105,23787.0,23786.0,0.08968614]
[1659273094803,0.01449105,23787.0,23786.0,0.08968614]
[1659273095035,0.31791105,23787.0,23786.0,0.08968614]
[1659273096622,0.01449105,23787.0,23786.0,0.08968614]
[1659273096840,0.31780272,23787.0,23786.0,0.08968614]
[1659273097286,0.01438272,23787.0,23786.0,0.08968614]
[1659273097512,0.31780272,23787.0,23786.0,0.08968614]
[1659273097910,0.31780272,23787.0,23786.0,0.08935957]
[1659273098343,0.01438272,23787.0,23786.0,0.08935957]
[1659273098544,0.31780272,23787.0,23786.0,0.08935957]
[1659273100283,0.01438272,23787.0,23786.0,0.08935957]
[1659273100511,0.31780272,23787.0,23786.0,0.08935957]
[1659273100702,0.04643955,23787.0,23786.0,0.08935957]
[1659273100980,0.34985955,23787.0,23786.0,0.08935957]
[1659273101351,0.3446197,23787.0,23786.0,0.08935957]
[1659273102219,0.0411997,23787.0,23786.0,0.08935957]
[1659273102726,0.3446197,23787.0,23786.0,0.08935957]
[1659273102945,0.0411997,23787.0,23786.0,0.08935957]
[1659273103350,0.3446197,23787.0,23786.0,0.08935957]
[1659273103963,0.0411997,23787.0,23786.0,0.08935957]
[1659273104142,0.31256287,23787.0,23786.0,0.09197591]
[1659273104346,0.31256287,23787.0,23786.0,0.08935957]
[1659273104735,0.00914287,23787.0,23786.0,0.08935957]
[1659273105160,0.31256287,23787.0,23777.0,0.0033]
[1659273105390,0.08470258,23779.0,23778.0,0.11403587]
[1659273105609,1.09234406,23779.0,23777.0,0.41055733]
[1659273105844,0.1792,23783.0,23777.0,0.41055733]
[1659273105845,0.38812258,23778.0,23777.0,0.0033]
[1659273106952,0.30342,23778.0,23777.0,0.0033]
[1659273107638,0.33547683,23778.0,23777.0,0.0033]
[1659273108323,0.3400196,23778.0,23777.0,0.0033]
[1659273108531,0.30796277,23778.0,23777.0,0.0033]
[1659273108749,0.30796277,23778.0,23777.0,0.00591634]
[1659273108965,0.00454277,23778.0,23777.0,0.00591634]
[1659273109372,0.00454277,23778.0,23777.0,0.44940584]
[1659273109609,9.074e-05,23788.0,23779.0,1.05]
[1659273109837,9.074e-05,23788.0,23782.0,0.1286]
[1659273110100,9.074e-05,23788.0,23787.0,0.05]
[1659273110330,9.074e-05,23788.0,23787.0,0.45987367]
[1659273110605,9.074e-05,23788.0,23787.0,0.76329367]
[1659273111062,9.074e-05,23788.0,23787.0,0.79482367]
[1659273111297,9.074e-05,23788.0,23787.0,0.76329367]
[1659273111528,0.03214757,23788.0,23787.0,0.76067733]
[1659273111815,0.03214757,23788.0,23787.0,0.40725733]
[1659273111816,9.074e-05,23788.0,23787.0,0.40725733]
[1659273112051,9.074e-05,23788.0,23787.0,0.063]
[1659273112511,9.074e-05,23788.0,23787.0,0.06561634]
[1659273112958,9.074e-05,23788.0,23787.0,0.063]
[1659273113187,9.074e-05,23788.0,23783.0,0.03154]
[1659273113410,9.074e-05,23788.0,23784.0,0.40725733]
[1659273113631,9.074e-05,23788.0,23786.0,6.2e-05]
[1659273113904,9.074e-05,23788.0,23787.0,0.00195965]
[1659273116043,9.074e-05,23788.0,23787.0,0.05895965]
[1659273117207,9.074e-05,23788.0,23787.0,0.00195965]
[1659273117436,9.074e-05,23788.0,23787.0,0.00383545]
[1659273117885,0.30351074,23788.0,23787.0,0.06383545]
[1659273118107,0.03214757,23788.0,23787.0,0.06383545]
[1659273118598,0.38556757,23788.0,23787.0,0.06383545]
[1659273119282,0.38556757,23788.0,23787.0,0.00383545]
[1659273119789,0.7928249,23788.0,23787.0,0.00383545]
[1659273120021,0.8478249,23788.0,23787.0,0.00383545]
[1659273121855,0.7928249,23788.0,23787.0,0.00383545]
[1659273122109,0.8728249,23788.0,23787.0,0.00383545]
[1659273123000,0.84076807,23788.0,23787.0,0.00383545]
[1659273123218,0.76076807,23788.0,23787.0,0.00383545]
[1659273123938,0.84076807,23788.0,23787.0,0.00383545]
[1659273125380,0.76076807,23788.0,23787.0,0.00383545]
[1659273125610,1.06076807,23788.0,23787.0,0.00383545]
[1659273125849,1.11076807,23788.0,23787.0,0.00383545]
[1659273126105,1.18976807,23788.0,23787.0,0.00383545]
[1659273126582,1.6110249,23788.0,23787.0,0.00383545]
[1659273127289,1.5320249,23788.0,23787.0,0.00383545]
[1659273127530,1.5320249,23788.0,23784.0,0.03022232]
[1659273127531,0.05,23785.0,23784.0,0.03022232]
[1659273127742,0.79273416,23785.0,23784.0,0.03022232]
[1659273127989,1.73746416,23785.0,23781.0,0.00013835]
[1659273128224,1.03470258,23782.0,23777.0,0.0033]
[1659273128483,0.08470258,23778.0,23777.0,0.0033]
[1659273128720,0.03205683,23778.0,23777.0,0.0033]
[1659273128955,0.30342,23779.0,23778.0,6.233e-05]
[1659273129630,0.30342,23779.0,23778.0,0.58896966]
[1659273129845,0.08407,23785.0,23778.0,0.63915094]
[1659273130078,0.30342,23784.0,23778.0,0.63915094]
[1659273130309,0.30342,23783.0,23778.0,0.63915094]
[1659273130553,0.30342,23784.0,23780.0,6.232e-05]
[1659273130770,0.03205683,23783.0,23780.0,6.232e-05]
[1659273131237,0.33547683,23783.0,23780.0,6.232e-05]
[1659273131471,0.30342,23782.0,23778.0,0.41004094]
[1659273131705,0.30342,23782.0,23778.0,0.41196675]
[1659273131934,0.30342,23782.0,23778.0,0.40918314]
[1659273132146,0.11205683,23783.0,23778.0,0.40918314]
[1659273132616,0.62569483,23783.0,23778.0,0.40918314]
[1659273132834,0.62569483,23783.0,23778.0,0.00192581]
[1659273132835,0.05,23781.0,23778.0,0.00192581]
[1659273133108,0.08470258,23779.0,23778.0,0.00185683]
[1659273133297,0.38812258,23779.0,23778.0,0.00185683]
[1659273133976,0.46812258,23779.0,23778.0,0.00185683]
[1659273135335,0.38812258,23779.0,23778.0,0.00185683]
[1659273135806,0.30342,23779.0,23778.0,0.5618405]
[1659273136030,0.08,23779.0,23778.0,0.51327416]
[1659273136267,0.38342,23779.0,23778.0,0.40911416]
[1659273136493,0.38342,23779.0,23778.0,0.00185683]
[1659273138809,0.94282,23779.0,23778.0,0.00185683]
[1659273139273,0.86282,23779.0,23778.0,0.00185683]
[1659273139776,0.05,23772.0,23767.0,0.644]
[1659273140011,0.40725733,23771.0,23767.0,0.644]
[1659273140272,0.40725733,23771.0,23768.0,0.07461443]
[1659273140513,0.30342,23770.0,23768.0,0.07461443]
[1659273140748,0.30342,23769.0,23768.0,0.07461443]
[1659273141470,0.33547683,23769.0,23768.0,0.07461443]
[1659273141700,0.74273416,23769.0,23768.0,0.07461443]
[1659273141933,0.83373416,23769.0,23768.0,0.07461443]
[1659273143818,0.79273416,23769.0,23768.0,0.07461443]
[1659273144055,0.84973416,23769.0,23768.0,0.07461443]
[1659273144960,0.44247683,23769.0,23768.0,0.07461443]
[1659273145197,0.38547683,23769.0,23768.0,0.07461443]
[1659273145637,0.79273416,23769.0,23768.0,0.07461443]
[1659273145861,0.79273416,23769.0,23768.0,0.00187594]
[1659273145862,0.33547683,23769.0,23768.0,0.00187594]
[1659273146115,0.39247683,23769.0,23768.0,0.00187594]
[1659273146587,0.08905683,23769.0,23768.0,0.00187594]
[1659273146824,0.39247683,23769.0,23768.0,0.00187594]
[1659273147293,1.19973416,23769.0,23768.0,0.00187594]
[1659273147523,1.42862868,23769.0,23768.0,0.00187594]
[1659273147753,1.48114868,23769.0,23768.0,0.00187594]
[1659273148007,1.58069868,23769.0,23768.0,0.00187594]
[1659273148453,1.63069868,23769.0,23768.0,0.00187594]
[1659273148903,0.5,23766.0,23765.0,0.0022]
[1659273149126,1.21067733,23766.0,23765.0,0.0022]
[1659273149823,1.26267733,23766.0,23765.0,0.0022]
[1659273151151,1.21067733,23766.0,23765.0,0.0022]
[1659273151601,1.16067733,23766.0,23765.0,0.0022]
[1659273152064,1.21751278,23766.0,23765.0,0.0022]
[1659273152510,0.36025545,23766.0,23765.0,0.10636]
[1659273152740,0.05683545,23766.0,23765.0,0.51361733]
[1659273152968,0.05683545,23766.0,23765.0,0.84859733]
[1659273153267,0.00483545,23766.0,23765.0,0.97779733]
[1659273153503,0.00483545,23766.0,23765.0,0.99044081]
[1659273153729,0.00483545,23766.0,23765.0,0.68702081]
[1659273153966,0.03689228,23766.0,23765.0,0.56561733]
[1659273154190,0.03689228,23766.0,23765.0,0.0542]
[1659273154413,0.03205683,23766.0,23765.0,0.0542]
[1659273154636,0.05,23766.0,23765.0,0.0542]
[1659273154887,0.30342,23772.0,23765.0,0.46145733]
[1659273155141,0.30342,23772.0,23765.0,0.49301733]
[1659273155142,0.40725733,23772.0,23765.0,0.49301733]
[1659273155377,0.30342,23771.0,23765.0,0.44291278]
[1659273155612,0.40725733,23772.0,23767.0,6.236e-05]
[1659273155613,0.30342,23770.0,23767.0,6.236e-05]
[1659273155859,0.33547683,23769.0,23767.0,6.236e-05]
[1659273156091,0.30342,23768.0,23767.0,6.236e-05]
[1659273156538,0.30342,23768.0,23765.0,0.00409545]
[1659273156767,0.30342,23768.0,23765.0,0.00671179]
[1659273157038,0.30342,23768.0,23766.0,6.236e-05]
[1659273157943,0.30342,23768.0,23766.0,0.08061634]
[1659273158180,0.30342,23767.0,23766.0,0.08061634]
[1659273159119,0.30342,23767.0,23766.0,0.078]
[1659273159613,0.40725733,23772.0,23766.0,0.078]
[1659273159849,0.30342,23771.0,23765.0,0.0022]
[1659273160081,0.30342,23770.0,23766.0,0.078]
[1659273160327,0.30342,23769.0,23766.0,0.078]
[1659273160558,0.30342,23768.0,23766.0,0.078]
[1659273160800,0.30342,23767.0,23766.0,0.078]
[1659273161098,0.05,23773.0,23767.0,0.40725733]
[1659273161344,0.30342,23772.0,23767.0,0.40725733]
[1659273161583,0.55771422,23772.0,23766.0,0.40915233]
[1659273161812,0.30342,23771.0,23766.0,0.40915233]
[1659273162045,0.30342,23770.0,23766.0,0.40915233]
[1659273162283,0.33547683,23769.0,23766.0,0.00368066]
[1659273162513,0.33547683,23769.0,23766.0,0.006297]
[1659273162740,0.30342,23768.0,23766.0,0.00368066]
[1659273162985,0.55773455,23768.0,23766.0,0.00368066]
[1659273163208,0.30342,23767.0,23766.0,0.00368066]
[1659273163667,0.210311,23773.0,23766.0,0.41346704]
[1659273163902,0.30342,23772.0,23766.0,0.08359337]
[1659273164128,0.30342,23771.0,23766.0,0.08359337]
[1659273164361,0.30342,23770.0,23767.0,0.40725733]
[1659273164588,0.33547683,23769.0,23767.0,0.40725733]
[1659273164858,0.210343,23770.0,23767.0,0.40725733]
[1659273165098,0.30342,23769.0,23766.0,0.08359337]
[1659273165304,0.08470258,23767.0,23766.0,0.00359337]
[1659273165538,0.33547683,23767.0,23766.0,0.00359337]
[1659273165993,0.30342,23767.0,23766.0,0.08420971]
[1659273166233,0.30342,23767.0,23766.0,0.08159337]
[1659273166464,0.5574,23771.0,23766.0,0.08159337]
[1659273166465,0.767729,23771.0,23766.0,0.08159337]
[1659273166714,0.30342,23770.0,23766.0,0.08159337]
[1659273166935,0.30342,23769.0,23767.0,6.236e-05]
[1659273167167,0.30342,23768.0,23767.0,6.236e-05]
[1659273167424,0.30342,23770.0,23767.0,6.236e-05]
[1659273167643,0.08470258,23768.0,23767.0,6.236e-05]
[1659273167865,0.38812258,23768.0,23767.0,0.07806236]
[1659273168078,0.08470258,23768.0,23767.0,0.078]
[1659273168308,0.817729,23771.0,23767.0,0.08061634]
[1659273168309,0.30342,23769.0,23767.0,0.08061634]
[1659273168533,0.30342,23768.0,23767.0,0.08061634]
[1659273169047,0.30342,23768.0,23767.0,0.48787367]
[1659273169270,0.820094,23774.0,23767.0,0.40987367]
[1659273169468,0.30342,23773.0,23767.0,0.40987367]
[1659273169675,0.55774525,23773.0,23767.0,0.40725733]
[1659273169901,0.30342,23772.0,23767.0,0.40725733]
[1659273170145,0.30342,23771.0,23767.0,0.40725733]
[1659273170365,0.33547683,23770.0,23766.0,0.4108507]
[1659273170619,0.30342,23769.0,23766.0,0.4108507]
[1659273170852,0.30342,23768.0,23766.0,0.00359337]
[1659273171083,0.30342,23767.0,23766.0,0.00359337]
[1659273171331,0.30342,23768.0,23766.0,0.00620971]
[1659273171564,0.03205683,23768.0,23766.0,0.00359337]
[1659273171793,0.08205683,23768.0,23766.0,0.00359337]
[1659273172025,0.08205683,23768.0,23766.0,0.07859337]
[1659273172026,0.38812258,23767.0,23766.0,0.07859337]
[1659273172258,0.30342,23767.0,23766.0,0.07859337]
[1659273173178,0.30342,23767.0,23766.0,0.00359337]
[1659273173412,0.30342,23767.0,23766.0,0.00620971]
[1659273173638,0.30342,23767.0,23766.0,0.00359337]
[1659273173904,0.32242,23767.0,23766.0,0.08059337]
[1659273174360,0.019,23767.0,23766.0,0.08059337]
[1659273174610,0.32242,23767.0,23766.0,0.08059337]
[1659273174837,0.019,23767.0,23766.0,0.08059337]
[1659273175063,0.32242,23767.0,23766.0,0.08059337]
[1659273175512,0.32242,23767.0,23766.0,0.08320971]
[1659273175735,0.03205683,23767.0,23766.0,0.00359337]
[1659273175972,0.08,23767.0,23766.0,0.00359337]
[1659273176498,0.38342,23767.0,23766.0,0.00359337]
[1659273176724,0.41547683,23767.0,23766.0,0.00359337]
[1659273177392,0.33547683,23767.0,23766.0,0.00359337]
[1659273177826,0.41547683,23767.0,23766.0,0.00359337]
[1659273178301,0.11205683,23767.0,23766.0,0.00359337]
[1659273179429,0.41547683,23767.0,23766.0,0.00359337]
[1659273179671,0.33547683,23767.0,23766.0,0.00359337]
[1659273179896,0.35447683,23767.0,23766.0,0.08059337]
[1659273180405,0.05105683,23767.0,23766.0,0.08059337]
[1659273180621,0.35447683,23767.0,23766.0,0.08059337]
[1659273181284,0.33547683,23767.0,23766.0,0.00359337]
[1659273181961,0.35447683,23767.0,23766.0,0.08059337]
[1659273182263,0.94207683,23767.0,23766.0,0.08059337]
[1659273182913,0.32242,23767.0,23766.0,0.08059337]
[1659273183123,0.019,23767.0,23766.0,0.00359337]
[1659273183331,0.30342,23767.0,23766.0,0.00359337]
[1659273184024,0.36342,23767.0,23766.0,0.00359337]
[1659273185025,0.06,23767.0,23766.0,0.00359337]
[1659273185258,0.5437,23773.0,23766.0,0.00359337]
[1659273185489,0.71067733,23772.0,23766.0,0.00620971]
[1659273185718,0.30342,23771.0,23766.0,0.41346704]
[1659273185951,0.30342,23770.0,23766.0,0.41346704]
[1659273186194,0.30342,23769.0,23766.0,0.4108507]
[1659273186424,0.33547683,23768.0,23766.0,0.4108507]
[1659273186649,0.30342,23767.0,23766.0,0.4108507]
[1659273187381,0.30342,23767.0,23766.0,0.00359337]
[1659273187850,0.31042,23767.0,23766.0,0.07259337]
[1659273188071,0.31042,23767.0,23766.0,0.4798507]
[1659273188300,0.007,23767.0,23766.0,0.07259337]
[1659273188526,0.007,23767.0,23766.0,0.4798507]
[1659273188527,0.00693526,23767.0,23766.0,0.4798507]
[1659273189213,0.95095733,23773.0,23766.0,0.4108507]
[1659273189451,0.30342,23772.0,23766.0,0.4108507]
[1659273189686,0.30342,23771.0,23766.0,0.4108507]
[1659273189947,0.30342,23770.0,23766.0,0.4108507]
[1659273190175,0.33547683,23769.0,23766.0,0.4108507]
[1659273190402,0.30342,23768.0,23766.0,0.41346704]
[1659273191108,0.30342,23768.0,23766.0,0.4108507]
[1659273191547,0.30342,23768.0,23766.0,0.00359337]
[1659273192059,0.30342,23768.0,23766.0,0.08065573]
[1659273192275,0.30342,23768.0,23766.0,0.08327207]
[1659273192711,0.03205683,23769.0,23766.0,0.08065573]
[1659273193170,0.03205683,23769.0,23766.0,0.08059337]
[1659273193382,0.30342,23769.0,23766.0,0.00627207]